bitfinex-derivatives/quotes_SOLF0:USTF0_20240927
["timestamp","ask_amount","ask_price","bid_price","bid_amount"]
[1727447490202,42.01863762,159.91,159.78,38.93]
[1727447490397,3.1269,159.85,159.75,38.93]
[1727447490608,38.93,159.88,159.75,38.93]
[1727447491104,38.93,159.85,159.73,5.289]
[1727447491296,2.4882,159.84,159.73,5.289]
[1727447491497,2.4882,159.84,159.76,3.1284]
[1727447491803,5.68944746,159.84,159.73,5.289]
[1727447492008,3.1279,159.8,159.74,3.1288]
[1727447492208,41.6087,159.83,159.73,5.289]
[1727447492403,41.6087,159.83,159.71,113.27284694]
[1727447492708,3.06189705,159.82,159.71,113.27284694]
[1727447493209,3.1276,159.8,159.71,113.27284694]
[1727447493407,2.6787,159.83,159.71,113.27284694]
[1727447493606,2.6787,159.83,159.73,38.93]
[1727447495107,2.6787,159.83,159.72,2.5273]
[1727447495305,41.6087,159.83,159.72,2.5273]
[1727447495808,106.47,159.88,159.74,38.93]
[1727447496005,109.54880299,159.88,159.74,38.93]
[1727447496809,109.54880299,159.88,159.77,3.1279]
[1727447497005,109.54880299,159.88,159.74,38.93]
[1727447497315,109.54880299,159.88,159.8,3.1275]
[1727447497706,109.54880299,159.88,159.74,38.93]
[1727447498011,38.93,159.83,159.72,2.5273]
[1727447498206,2.666,159.82,159.74,3.1286]
[1727447498414,2.666,159.82,159.72,2.5273]
[1727447498605,38.93,159.81,159.69,2.7188]
[1727447498917,3.1281,159.77,159.72,3.1289]
[1727447499217,3.13541074,159.78,159.69,2.7188]
[1727447499411,41.5442,159.81,159.7,3.1293]
[1727447499608,41.5442,159.81,159.69,2.7188]
[1727447500114,41.5442,159.81,159.71,3.1292]
[1727447500315,2.6142,159.81,159.7,38.93]
[1727447500517,3.1276,159.8,159.75,3.1284]
[1727447500718,2.6142,159.81,159.7,38.93]
[1727447500907,2.666,159.82,159.7,38.93]
[1727447501311,2.666,159.82,159.73,38.93]
[1727447501819,3.1273,159.81,159.73,38.93]
[1727447502010,2.666,159.82,159.73,38.93]
[1727447502210,2.666,159.82,159.75,3.1283]
[1727447502405,2.666,159.82,159.7,38.93]
[1727447502615,38.93,159.78,159.69,2.7188]
[1727447502817,3.1286,159.75,159.69,5.8484]
[1727447503014,3.1286,159.75,159.51,274.0]
[1727447503015,42.01349276,159.75,159.61,11.30754538]
[1727447503231,2.5955,159.74,159.61,50.23754538]
[1727447503509,3.1293,159.71,159.61,50.23754538]
[1727447503907,2.5955,159.74,159.61,47.0467]
[1727447504114,3.1293,159.71,159.61,50.22565209]
[1727447504813,38.93,159.71,159.61,8.1167]
[1727447505215,3.1301,159.67,159.63,3.1307]
[1727447505421,38.93,159.71,159.61,8.1167]
[1727447505818,3.13,159.68,159.63,3.1307]
[1727447506119,38.93,159.73,159.61,8.1167]
[1727447506309,38.93,159.71,159.61,5.4645]
[1727447506817,38.93,159.71,159.57,38.93]
[1727447507112,3.1303,159.66,159.6,3.1312]
[1727447507324,38.93,159.68,159.6,3.1312]
[1727447507830,3.10284684,159.67,159.55,5.2962]
[1727447508121,3.1306,159.65,159.59,3.1315]
[1727447508618,3.1306,159.65,159.55,5.2962]
[1727447508818,3.1306,159.65,159.59,3.1315]
[1727447509016,3.1306,159.65,159.55,5.2962]
[1727447509420,3.20304293,159.7,159.57,38.93]
[1727447509615,38.93,159.71,159.57,38.93]
[1727447509816,3.1302,159.67,159.61,3.131]
[1727447510021,6.22047076,159.67,159.57,38.93]
[1727447510216,38.93,159.66,159.55,5.2962]
[1727447510416,3.1309,159.63,159.58,3.1316]
[1727447510623,42.14056107,159.63,159.55,5.2962]
[1727447510821,3.131,159.62,159.57,3.1319]
[1727447511119,42.12364525,159.63,159.55,5.2962]
[1727447511314,5.8266,159.65,159.55,5.2962]
[1727447511514,2.6961,159.65,159.55,5.2962]
[1727447512513,3.10123472,159.67,159.57,38.93]
[1727447512722,44.0139,159.71,159.57,38.93]
[1727447513117,38.93,159.66,159.55,5.2962]
[1727447513919,8.23248166,159.71,159.58,38.93]
[1727447514109,3.1296,159.69,159.58,38.93]
[1727447514310,8.23248166,159.71,159.6,38.93]
[1727447514509,5.0839,159.71,159.61,3.17333416]
[1727447514709,67.64,159.75,159.63,38.93]
[1727447514915,3.11909031,159.79,159.68,38.93]
[1727447515225,38.93,159.76,159.65,38.93]
[1727447515521,38.93,159.76,159.64,5.485]
[1727447516020,5.1883,159.78,159.65,38.93]
[1727447516021,44.1183,159.78,159.65,38.93]
[1727447516217,3.19656641,159.77,159.65,38.93]
[1727447516419,6.32476641,159.77,159.72,3.129]
[1727447516615,6.32476641,159.77,159.65,38.93]
[1727447517020,3.1278,159.79,159.7,38.93]
[1727447517217,3.05288996,159.8,159.71,2.6112]
[1727447517417,38.93,159.81,159.71,2.6112]
[1727447517819,3.1278,159.79,159.74,3.1285]
[1727447518018,2.5139,159.82,159.71,2.6112]
[1727447518231,2.5139,159.82,159.72,38.93]
[1727447518422,2.5139,159.82,159.72,42.00950162]
[1727447518619,67.64,159.84,159.74,38.93]
[1727447518920,2.6128,159.87,159.77,38.93]
[1727447519225,2.5642,159.9,159.82,38.93]
[1727447519518,67.62,159.93,159.82,38.93]
[1727447519723,67.62,159.93,159.86,3.1261]
[1727447519724,3.1252,159.92,159.86,3.1261]
[1727447520020,3.1252,159.92,159.83,5.352]
[1727447520228,3.1252,159.92,159.87,3.1259]
[1727447520624,6.30235428,159.92,159.83,8.44777707]
[1727447520927,3.1252,159.92,159.87,3.126]
[1727447521125,2.6782,159.99,159.88,38.93]
[1727447521425,38.93,159.96,159.88,3.1257]
[1727447521628,38.93,159.96,159.85,3.19544262]
[1727447521629,3.1248,159.94,159.85,3.19544262]
[1727447521822,38.93,159.9,159.83,5.352]
[1727447522121,3.1257,159.89,159.83,5.352]
[1727447522328,42.10042447,159.9,159.83,2.7053]
[1727447522628,38.93,159.88,159.79,74.53231043]
[1727447522822,38.93,159.85,159.79,74.53231043]
[1727447523024,42.06320998,159.88,159.79,74.53231043]
[1727447523227,38.93,159.88,159.79,74.53231043]
[1727447523424,3.1264,159.86,159.81,3.1272]
[1727447523727,38.93,159.88,159.79,74.53231043]
[1727447524030,38.93,159.86,159.76,3.11069365]
[1727447524231,38.93,159.86,159.75,2.7253]
[1727447524424,38.93,159.89,159.77,38.93]
[1727447524622,38.93,159.89,159.81,3.1271]
[1727447525022,3.1262,159.87,159.81,3.1271]
[1727447525219,6.18213965,159.87,159.81,3.1271]
[1727447525623,3.1259,159.89,159.84,3.1266]
[1727447525931,2.7417,159.92,159.79,38.93]
[1727447526129,38.93,159.91,159.77,38.93]
[1727447526329,38.93,159.88,159.77,42.10544916]
[1727447526530,38.93,159.85,159.75,2.7253]
[1727447526731,3.12070004,159.87,159.75,41.6553]
[1727447527031,3.17857768,159.87,159.75,44.85233596]
[1727447527225,2.749,159.91,159.75,2.7253]
[1727447527226,38.93,159.85,159.75,2.7253]
[1727447527724,38.93,159.82,159.75,2.7253]
[1727447528327,3.1277,159.79,159.75,2.7253]
[1727447529332,38.93,159.82,159.7,77.65212929]
[1727447529523,38.93,159.82,159.71,5.3486]
[1727447530032,41.4658,159.9,159.76,38.93]
[1727447530524,41.4658,159.9,159.82,3.1271]
[1727447531126,2.5358,159.9,159.83,3.1268]
[1727447531326,38.93,159.96,159.84,38.93]
[1727447531629,3.20425549,159.94,159.84,38.93]
[1727447531825,38.93,159.99,159.87,38.93]
[1727447532130,38.93,159.96,159.87,3.1261]
[1727447532329,38.93,159.96,159.82,38.93]
[1727447532724,3.1251,159.93,159.88,3.1257]
[1727447533218,3.1251,159.93,159.84,38.93]
[1727447533425,3.1247,159.94,159.84,38.93]
[1727447533731,47.08233178,159.99,159.84,38.93]
[1727447534026,47.08233178,159.99,159.87,38.93]
[1727447534331,47.08233178,159.99,159.9,3.1254]
[1727447534521,47.08233178,159.99,159.87,38.93]
[1727447534920,47.08233178,159.99,159.91,3.1251]
[1727447534921,3.1245,159.96,159.91,3.1251]
[1727447535127,8.15233178,159.99,159.9,38.93]
[1727447535438,8.1239,159.99,159.94,3.1246]
[1727447535823,8.1239,159.99,159.92,38.93]
[1727447536029,5.0,159.99,159.96,3.1243]
[1727447536227,5.0,159.99,159.94,38.93]
[1727447536427,5.0,159.99,159.97,38.93]
[1727447536633,3.123,160.03,159.99,3.1237]
[1727447536934,5.2687,160.08,159.94,38.93]
[1727447537437,8.42039205,160.08,159.94,42.05418001]
[1727447537733,38.93,160.04,159.91,2.6264]
[1727447537933,38.93,160.01,159.91,2.6264]
[1727447538335,3.1241,159.98,159.93,3.1248]
[1727447538834,38.93,160.01,159.93,3.1248]
[1727447539230,38.93,160.01,159.91,2.6264]
[1727447539430,3.1241,159.98,159.91,2.6264]
[1727447539625,38.93,160.01,159.93,3.1248]
[1727447539837,38.93,160.01,159.9,2.6773]
[1727447539838,2.618,160.03,159.91,3.12398436]
[1727447540039,2.618,160.03,159.9,41.6073]
[1727447540227,2.618,160.03,159.92,38.93]
[1727447540534,3.1238,159.99,159.92,38.93]
[1727447540740,2.618,160.03,159.9,44.79347031]
[1727447540935,3.1242,159.97,159.9,44.79347031]
[1727447541136,2.618,160.03,159.9,44.79347031]
[1727447541339,38.93,159.99,159.89,2.7186]
[1727447541528,41.99193921,159.99,159.89,2.7186]
[1727447541732,2.6952,159.98,159.89,2.7186]
[1727447542034,5.78089455,159.98,159.89,2.7186]
[1727447542539,3.1237,160.0,159.9,38.93]
[1727447542734,5.3132,160.03,159.9,38.93]
[1727447543740,5.3132,160.03,159.93,38.93]
[1727447544638,3.1235,160.01,159.97,3.124]
[1727447544942,5.3132,160.03,159.95,3.08038524]
[1727447545135,5.3132,160.03,159.93,38.93]
[1727447545332,38.93,160.02,159.89,2.7186]
[1727447545741,3.1243,159.97,159.93,3.1249]
[1727447546043,3.19133661,159.97,159.89,2.7186]
[1727447546241,3.1242,159.97,159.93,3.1249]
[1727447546437,38.93,160.0,159.93,3.1249]
[1727447546637,38.93,159.97,159.85,38.93]
[1727447546836,3.13664227,159.96,159.84,5.3525]
[1727447547239,2.7349,159.95,159.84,5.3525]
[1727447547544,38.93,159.97,159.86,38.93]
[1727447547740,3.09799349,159.97,159.86,42.03518504]
[1727447547945,3.1247,159.95,159.91,3.1252]
[1727447548141,38.93,159.97,159.86,42.03518504]
[1727447548547,3.125,159.93,159.89,3.1256]
[1727447548852,5.8847977,159.98,159.89,3.07110335]
[1727447549042,3.1245,159.95,159.86,38.93]
[1727447549445,2.7349,159.98,159.88,38.93]
[1727447549749,3.1243,159.97,159.88,38.93]
[1727447550041,38.93,160.02,159.9,38.93]
[1727447550240,2.6952,160.03,159.93,38.93]
[1727447550440,2.6952,160.03,159.94,2.647]
[1727447550642,2.6952,160.03,159.95,3.08437106]
[1727447550946,2.6952,160.03,159.98,3.1238]
[1727447550947,3.1234,160.01,159.98,3.1238]
[1727447551942,37.52,160.32,160.03,288.0]
[1727447552150,2.6675,160.13,160.02,38.93]
[1727447552544,2.6675,160.13,160.05,3.1225]
[1727447552545,3.1218,160.1,160.05,3.1225]
[1727447552744,3.1218,160.1,160.02,38.93]
[1727447552940,2.6675,160.13,160.07,38.93]
[1727447553142,38.93,160.26,160.12,38.93]
[1727447553346,41.4454,160.31,160.18,38.93]
[1727447553546,3.1185,160.27,160.2,3.1196]
[1727447553841,38.93,160.22,160.04,2.6799]
[1727447554151,38.93,160.26,160.12,38.93]
[1727447554650,3.08945137,160.26,160.14,38.93]
[1727447554846,44.0945,160.28,160.17,38.93]
[1727447555043,5.1645,160.28,160.17,38.93]
[1727447555352,44.0945,160.28,160.14,38.93]
[1727447555756,47.16771903,160.28,160.14,38.93]
[1727447556142,38.93,160.26,160.14,38.93]
[1727447556450,38.93,160.2,160.06,38.93]
[1727447556659,8.15812679,160.19,160.06,42.02507026]
[1727447556842,5.0231,160.19,160.06,42.02507026]
[1727447557448,5.0231,160.19,160.12,3.1212]
[1727447557851,5.0231,160.19,160.06,42.02507026]
[1727447558053,5.0231,160.19,160.1,38.93]
[1727447559058,3.1201,160.18,160.1,38.93]
[1727447559357,5.0231,160.19,160.11,38.93]
[1727447559553,3.13358735,160.26,160.17,38.93]
[1727447559753,2.6715,160.28,160.17,38.93]
[1727447559953,3.1187,160.25,160.19,3.1198]
[1727447560254,2.6715,160.28,160.17,38.93]
[1727447560658,3.10599587,160.27,160.17,38.93]
[1727447561661,3.10599587,160.27,160.14,2.745]
[1727447561662,2.6715,160.28,160.2,38.93]
[1727447562059,2.7088,160.3,160.26,3.1184]
[1727447562261,2.7088,160.3,160.25,38.93]
[1727447563059,2.7088,160.3,160.23,38.93]
[1727447564367,3.118,160.29,160.23,42.0489]
[1727447564769,2.7088,160.3,160.27,3.1183]
[1727447565068,2.7088,160.3,160.23,38.93]
[1727447565282,5.8266,160.3,160.24,3.1187]
[1727447565567,5.8266,160.3,160.25,38.93]
[1727447565568,2.7088,160.3,160.25,38.93]
[1727447565770,2.7088,160.3,160.23,38.93]
[1727447566663,5.8266,160.3,160.25,3.1185]
[1727447567065,3.1179,160.29,160.25,3.1185]
[1727447567465,2.7088,160.3,160.25,3.1187]
[1727447567659,5.8266,160.3,160.25,3.1187]
[1727447568064,2.7088,160.3,160.25,3.1187]
[1727447568464,2.7088,160.3,160.25,38.93]
[1727447568663,2.7088,160.3,160.2,38.93]
[1727447568664,2.6715,160.35,160.28,38.93]
[1727447568871,5.75318132,160.38,160.31,38.93]
[1727447569276,5.75318132,160.38,160.21,8.9024]
[1727447569476,5.75318132,160.38,160.27,38.93]
[1727447570070,5.75318132,160.38,160.3,38.93]
[1727447570272,3.1168,160.35,160.3,38.93]
[1727447570471,2.6989,160.38,160.27,38.93]
[1727447571176,3.117,160.34,160.29,3.1179]
[1727447572073,2.6989,160.38,160.27,38.93]
[1727447572266,41.6289,160.38,160.25,38.93]
[1727447573272,3.1175,160.31,160.25,38.93]
[1727447573474,41.6289,160.38,160.25,38.93]
[1727447573671,41.6289,160.38,160.27,38.93]
[1727447573672,2.6989,160.38,160.27,38.93]
[1727447574067,2.6989,160.38,160.28,3.118]
[1727447574271,2.6989,160.38,160.27,38.93]
[1727447574272,2.6989,160.38,160.22,3.19244866]
[1727447574571,38.93,160.3,160.16,2.6478]
[1727447574881,8.0919,160.29,160.16,5.73290044]
[1727447575071,3.1187,160.25,160.16,5.73290044]
[1727447575271,8.0919,160.29,160.16,5.73290044]
[1727447575467,38.93,160.27,160.16,2.6478]
[1727447577082,38.93,160.25,160.12,38.93]
[1727447577275,38.93,160.25,160.13,1.14714624]
[1727447577577,3.1192,160.23,160.17,3.1201]
[1727447577774,106.33,160.27,160.15,38.93]
[1727447577975,38.93,160.25,160.13,38.93]
[1727447578278,38.93,160.25,160.11,2.7429]
[1727447578575,67.4,160.27,160.16,38.93]
[1727447578981,3.1196,160.21,160.15,3.1205]
[1727447579377,38.93,160.26,160.11,41.6729]
[1727447579681,3.1198,160.2,160.14,3.1206]
[1727447579883,3.1198,160.2,160.11,41.6729]
[1727447580184,3.1198,160.2,160.15,3.1206]
[1727447580375,3.1198,160.2,160.11,41.6729]
[1727447580681,3.1198,160.2,160.14,3.1208]
[1727447580883,3.13155547,160.21,160.11,41.6729]
[1727447580884,42.06155547,160.21,160.11,2.7429]
[1727447581178,67.4,160.27,160.11,2.7429]
[1727447581179,2.3319,160.19,160.11,2.7429]
[1727447581375,4.5273,160.26,160.16,38.93]
[1727447581783,3.1192,160.23,160.14,38.93]
[1727447581973,4.5273,160.26,160.19,38.93]
[1727447582173,4.5273,160.26,160.2,3.1195]
[1727447582376,3.1188,160.25,160.2,3.1195]
[1727447582579,3.1188,160.25,160.13,2.5197]
[1727447582580,4.5273,160.26,160.16,38.93]
[1727447582975,3.119,160.24,160.19,3.1198]
[1727447583781,3.119,160.24,160.2,3.1195]
[1727447583974,2.3833,160.26,160.19,38.93]
[1727447584279,67.4,160.27,160.21,38.93]
[1727447584679,3.10986072,160.32,160.26,3.1185]
[1727447584873,2.334,160.33,160.22,2.3768]
[1727447585083,3.17821274,160.32,160.24,38.93]
[1727447585283,3.17821274,160.32,160.27,3.1181]
[1727447585686,3.17821274,160.32,160.24,38.93]
[1727447585882,3.17821274,160.32,160.28,3.1179]
[1727447586084,4.7106,160.34,160.28,3.1179]
[1727447586281,2.425,160.34,160.27,38.93]
[1727447586486,5.59402965,160.34,160.27,38.93]
[1727447586687,2.425,160.34,160.27,38.93]
[1727447587288,67.42,160.36,160.27,38.93]
[1727447587784,3.1172,160.33,160.29,3.1179]
[1727447588379,67.42,160.36,160.27,42.0482]
[1727447588380,3.1174,160.32,160.27,42.0482]
[1727447588787,3.1174,160.32,160.27,38.93]
[1727447588993,38.93,160.35,160.22,2.3768]
[1727447589190,38.93,160.33,160.22,2.3768]
[1727447589689,38.93,160.33,160.19,38.93]
[1727447589887,38.93,160.3,160.17,1.7708]
[1727447590095,2.2883,160.29,160.16,38.93]
[1727447590586,2.2883,160.29,160.18,3.12]
[1727447590587,41.2218,160.28,160.18,3.12]
[1727447590778,44.40225417,160.28,160.12,6.3257]
[1727447590978,2.3102,160.27,160.12,6.3257]
[1727447591183,38.93,160.25,160.12,6.3257]
[1727447591595,38.93,160.25,160.12,4.5549]
[1727447591889,38.93,160.22,160.09,113.32100317]
[1727447592591,38.93,160.22,160.12,3.1212]
[1727447592793,2.3102,160.27,160.09,74.39100317]
[1727447593092,2.3102,160.27,160.17,38.93]
[1727447593287,2.2883,160.29,160.19,38.93]
[1727447594087,3.1183,160.27,160.22,3.1191]
[1727447594287,67.4,160.32,160.22,38.93]
[1727447594892,3.1176,160.31,160.26,3.1184]
[1727447595095,67.4,160.32,160.22,38.93]
[1727447595695,67.4,160.32,160.19,1.7749]
[1727447595696,67.4,160.32,160.25,38.93]
[1727447596186,67.4,160.32,160.22,38.93]
[1727447596597,67.4,160.32,160.25,3.1185]
[1727447596796,67.4,160.32,160.22,38.93]
[1727447597291,38.93,160.3,160.18,2.2998]
[1727447597494,38.93,160.28,160.13,38.93]
[1727447597792,38.93,160.25,160.14,1.1469846]
[1727447597996,4.8269,160.24,160.13,38.93]
[1727447598196,7.88629505,160.24,160.13,38.93]
[1727447598593,4.8269,160.24,160.13,38.93]
[1727447598788,3.1193,160.22,160.13,38.93]
[1727447598992,38.93,160.28,160.16,38.93]
[1727447599292,38.93,160.28,160.13,38.93]
[1727447599293,4.8269,160.3,160.21,38.93]
[1727447600092,3.1183,160.27,160.23,3.119]
[1727447600297,3.1183,160.27,160.21,38.93]
[1727447600601,3.12004494,160.37,160.27,3.1181]
[1727447600799,4.6854,160.36,160.25,38.93]
[1727447601391,2.2283,160.35,160.25,38.93]
[1727447601798,3.118,160.29,160.25,42.0485]
[1727447602493,3.1181,160.28,160.24,3.1188]
[1727447602796,2.2283,160.35,160.23,38.93]
[1727447602999,3.1184,160.27,160.23,38.93]
[1727447603200,3.1184,160.27,160.23,42.0489]
[1727447603401,2.2283,160.35,160.23,38.93]
[1727447603595,3.118,160.29,160.25,3.1186]
[1727447603796,3.118,160.29,160.23,38.93]
[1727447603995,2.2283,160.35,160.25,38.93]
[1727447604797,3.1173,160.32,160.28,3.1181]
[1727447605000,2.2283,160.35,160.28,3.1181]
[1727447605193,4.6854,160.36,160.25,38.93]
[1727447605396,4.6854,160.36,160.28,38.93]
[1727447605597,2.3648,160.36,160.28,38.93]
[1727447606099,3.12004494,160.37,160.3,38.93]
[1727447606398,4.4792,160.4,160.32,3.1172]
[1727447606598,67.4,160.45,160.35,38.93]
[1727447606996,3.1153,160.43,160.39,3.1158]
[1727447607902,2.2114,160.47,160.41,38.93]
[1727447608100,5.48597346,160.48,160.41,38.93]
[1727447608405,2.3244,160.48,160.41,38.93]
[1727447608796,2.3244,160.48,160.42,3.1154]
[1727447608797,3.1145,160.47,160.42,3.1154]
[1727447609009,2.3244,160.48,160.38,38.93]
[1727447609304,3.1147,160.46,160.41,3.1154]
[1727447609605,2.3244,160.48,160.38,38.93]
[1727447610394,3.115,160.45,160.39,3.1159]
[1727447611007,2.3244,160.48,160.39,3.1159]
[1727447612006,3.1152,160.43,160.38,3.1161]
[1727447612407,2.3244,160.48,160.36,38.93]
[1727447612999,3.115,160.44,160.36,38.93]
[1727447613706,3.115,160.44,160.4,3.1157]
[1727447614304,69.5714,160.52,160.38,38.93]
[1727447614513,5.2682504,160.52,160.43,38.93]
[1727447614705,5.2682504,160.52,160.44,2.2079]
[1727447614906,3.1141,160.49,160.44,2.2079]
[1727447615103,2.2114,160.52,160.44,2.2079]
[1727447615401,2.2114,160.52,160.46,3.1146]
[1727447615402,3.1136,160.51,160.46,3.1146]
[1727447616003,3.1139,160.5,160.46,3.1146]
[1727447616204,3.04043924,160.5,160.44,2.2079]
[1727447616511,3.1142,160.48,160.44,2.2079]
[1727447616700,3.072844,160.52,160.46,3.1144]
[1727447616907,2.1876,160.53,160.46,3.1144]
[1727447617401,2.1876,160.53,160.45,3.1147]
[1727447617602,5.38040394,160.53,160.44,2.2079]
[1727447617909,2.1876,160.53,160.44,5.3227]
[1727447618311,38.93,160.52,160.4,1.7738]
[1727447618510,2.1876,160.53,160.4,3.9898]
[1727447618813,5.30967506,160.53,160.41,38.93]
[1727447619014,5.30967506,160.53,160.46,3.1146]
[1727447619310,38.93,160.58,160.46,3.1146]
[1727447619515,38.93,160.58,160.47,3.1144]
[1727447619910,3.0865509,160.58,160.46,38.93]
[1727447620114,38.93,160.57,160.46,42.0445]
[1727447620310,42.02402967,160.57,160.46,38.93]
[1727447620507,42.02402967,160.57,160.46,3.1144]
[1727447620701,42.02402967,160.57,160.46,38.93]
[1727447621204,2.23,160.59,160.46,38.93]
[1727447621411,5.36142353,160.59,160.48,38.93]
[1727447621608,3.113,160.55,160.5,3.1138]
[1727447622402,2.23,160.59,160.49,2.1825]
[1727447622614,2.23,160.59,160.5,38.93]
[1727447623010,3.1127,160.56,160.5,38.93]
[1727447623515,3.1127,160.56,160.51,3.1136]
[1727447623902,3.1126,160.57,160.5,38.93]
[1727447624106,5.25862687,160.6,160.5,38.93]
[1727447624508,67.36,160.61,160.5,38.93]
[1727447624713,3.06737923,160.6,160.5,40.7032]
[1727447625016,3.1124,160.58,160.53,3.1132]
[1727447626212,3.1124,160.58,160.54,3.113]
[1727447626517,41.2933,160.66,160.53,38.93]
[1727447626713,41.2933,160.66,160.55,3.1128]
[1727447626917,38.93,160.64,160.5,40.7032]
[1727447627114,67.3,160.86,160.59,38.93]
[1727447627317,38.93,160.7,160.6,2.2984]
[1727447627516,2.2089,160.69,160.6,2.2984]
[1727447627911,38.93,160.75,160.62,38.93]
[1727447628116,41.1389,160.75,160.62,42.01409753]
[1727447628625,38.93,160.72,160.6,41.2284]
[1727447629115,38.93,160.7,160.6,2.2984]
[1727447630118,3.1114,160.63,160.6,2.2984]
[1727447630315,38.93,160.67,160.54,38.93]
[1727447630513,4.5415,160.66,160.54,38.93]
[1727447631016,38.93,160.65,160.54,3.1129]
[1727447631216,3.16322018,160.64,160.54,3.1129]
[1727447631421,41.1009,160.65,160.54,3.1129]
[1727447631722,2.1709,160.65,160.53,3.1132]
[1727447631922,38.93,160.64,160.52,38.93]
[1727447632126,3.1121,160.6,160.52,38.93]
[1727447632318,3.1121,160.6,160.54,3.113]
[1727447632622,3.16197457,160.63,160.54,3.113]
[1727447633212,38.93,160.61,160.51,2.1825]
[1727447633419,38.93,160.64,160.52,38.93]
[1727447633618,3.18813233,160.63,160.52,38.93]
[1727447634126,3.18813233,160.63,160.54,3.113]
[1727447634515,38.93,160.64,160.54,3.113]
[1727447634722,42.09964,160.64,160.52,38.93]
[1727447635226,38.93,160.62,160.51,2.1825]
[1727447635816,38.93,160.62,160.51,5.2961]
[1727447636023,42.09964,160.64,160.52,38.93]
[1727447636219,3.16964,160.64,160.54,38.93]
[1727447636416,3.1117,160.61,160.56,3.1125]
[1727447639021,4.5415,160.66,160.57,38.93]
[1727447639427,3.1118,160.61,160.57,38.93]
[1727447639824,3.1909271,160.62,160.57,38.93]
[1727447640025,4.5415,160.66,160.57,38.93]
[1727447640523,3.1116,160.62,160.57,42.0424]
[1727447640823,2.3512,160.66,160.61,38.93]
[1727447641532,3.1114,160.63,160.59,38.93]
[1727447641722,84.31042857,160.98,160.62,38.93]
[1727447641918,2.2648,160.76,160.68,38.93]
[1727447642123,38.93,160.84,160.7,38.93]
[1727447642328,72.07087921,160.98,160.76,38.93]
[1727447642519,3.18586693,160.98,160.83,38.93]
[1727447642828,38.93,160.91,160.78,38.93]
[1727447643024,224.0,161.37,160.81,42.0376]
[1727447643218,2.2399,160.96,160.84,38.93]
[1727447643418,43.4812,160.95,160.81,38.93]
[1727447643622,38.93,160.98,160.84,42.0371]
[1727447643819,3.08529666,160.97,160.9,38.93]
[1727447644125,38.93,161.03,160.9,38.93]
[1727447644428,2.2648,161.12,160.93,38.93]
[1727447644633,38.93,161.05,160.93,38.93]
[1727447644827,38.93,161.08,160.93,38.93]
[1727447645125,38.93,161.07,160.8,67.22]
[1727447645327,38.93,161.04,160.89,38.93]
[1727447645525,3.1048,160.97,160.89,38.93]
[1727447645827,38.93,161.04,160.89,38.93]
[1727447646023,38.93,161.04,160.91,38.93]
[1727447646225,67.22,161.06,160.91,38.93]
[1727447646929,3.1042,161.0,160.91,42.0359]
[1727447647624,67.22,161.06,160.89,38.93]